fUSD/lending_fUSD_20240606
["ID","MTS","AMOUNT","RATE_DAILY","PERIOD"]
[328680994,1717695046883,-500.0,0.000274,2]
[328680995,1717695046893,-250.76,0.00027408,2]
[328680996,1717695046902,-250.76,0.0002748,2]
[328680997,1717695046912,-494.12916404,0.00027496,2]
[328680998,1717695046921,-1000.0,0.00027499,2]
[328680999,1717695046931,-2110.0,0.000275,15]
[328681000,1717695046941,-250.76,0.00027552,2]
[328681001,1717695046951,-250.76,0.00027624,2]
[328681002,1717695046961,-331.93,0.00027696,2]
[328681003,1717695046970,-221.0,0.0002774,2]
[328681004,1717695046979,-203.0,0.0002774,2]
[328681005,1717695046989,-213.0,0.0002774,2]
[328681006,1717695047000,-494.12916404,0.00027897,2]
[328681007,1717695047010,-700.0,0.000279,10]
[328681008,1717695047020,-1319.86668073,0.00027925,2]
[328681010,1717695047030,-2110.0,0.00028,15]
[328681012,1717695047039,-169.7,0.00028037,2]
[328681013,1717695047049,-339.51,0.00028159,2]
[328681014,1717695047058,-264.88898994,0.00028172,2]
[328681016,1717695047069,-173.34,0.00028207,2]
[328681018,1717695047078,-1608.28,0.00028247,2]
[328681020,1717695047088,-494.12916404,0.00028297,2]
[328681022,1717695047098,-200.0,0.000283,2]
[328681024,1717695047108,-221.0,0.000283,2]
[328681026,1717695047117,-203.0,0.000283,2]
[328681028,1717695047126,-213.0,0.000283,2]
[328681030,1717695047135,-201.33737076,0.00028352,2]
[328681032,1717695047144,-161.19,0.00028383,2]
[328681034,1717695047153,-1319.86668073,0.00028419,2]
[328681035,1717695047163,-500.0,0.00028436,2]
[328681036,1717695047172,-1000.0,0.00028491,2]
[328681037,1717695047181,-155.19529113,0.00028498,2]
[328681038,1717695047192,-2110.0,0.000285,15]
[328681039,1717695047204,-494.12916404,0.00028698,2]
[328681040,1717695047213,-3000.0,0.000288,2]
[328681041,1717695047222,-200.0,0.0002887,2]
[328681042,1717695047231,-221.0,0.0002887,2]
[328681043,1717695047242,-203.0,0.0002887,2]
[328681044,1717695047251,-213.0,0.0002887,2]
[328681045,1717695047260,-1319.86668073,0.00028913,2]
[328681046,1717695047271,-155.63070279,0.00029,2]
[328681047,1717695047281,-2110.0,0.00029,15]
[328681048,1717695047291,-1400.0,0.00029,10]
[328681049,1717695047301,-264.88898994,0.00029036,2]
[328681050,1717695047310,-494.12916404,0.00029099,15]
[328681051,1717695047320,-2622.0,0.000291,2]
[328681052,1717695047329,-2100.0,0.000291,10]
[328681053,1717695047339,-2800.0,0.000292,10]
[328681054,1717695047348,-3600.0,0.000293,10]
[328681055,1717695047357,-300.0,0.000294,2]
[328681056,1717695047366,-700.0,0.000294,10]
[328681057,1717695047376,-1319.86668073,0.00029406,2]
[328681058,1717695047385,-200.0,0.0002943,2]
[328681059,1717695047395,-221.0,0.0002943,2]
[328681060,1717695047404,-203.0,0.0002943,2]
[328681061,1717695047414,-213.0,0.0002943,2]
[328681062,1717695047423,-494.12916404,0.00029499,15]
[328681063,1717695047433,-226.62818763,0.000295,3]
[328681064,1717695047442,-2110.0,0.000295,15]
[328681065,1717695047451,-700.0,0.000295,10]
[328681066,1717695047460,-300.0,0.00029532,2]
[328681067,1717695047470,-700.0,0.000296,10]
[328681068,1717695047479,-174.1341364,0.00029657,2]
[328681069,1717695047488,-175.96130782,0.0002966,2]
[328681070,1717695047498,-3488.48951812,0.0002966,2]
[328681071,1717695047507,-164.68221473,0.0002966,2]
[328681072,1717695047516,-170.15696502,0.0002966,2]
[328681073,1717695047526,-558.8484158,0.00029665,2]
[328681074,1717695047536,-558.8484158,0.00029666,2]
[328681075,1717695047545,-153.52790425,0.00029667,2]
[328681076,1717695047555,-154.2025836,0.00029673,2]
[328681077,1717695047564,-297.8787562,0.00029674,2]
[328681078,1717695047574,-3488.48951811,0.00029682,2]
[328681079,1717695047583,-155.20555369,0.00029685,2]
[328681080,1717695047592,-297.8787562,0.00029685,2]
[328681081,1717695047602,-700.0,0.000297,10]
[328681082,1717695047611,-247.05607042,0.00029701,2]
[328681083,1717695047621,-3488.48951811,0.00029704,2]
[328681084,1717695047630,-300.03381031,0.00029717,2]
[328681085,1717695047639,-154.97899525,0.00029718,2]
[328681086,1717695047649,-3488.48951811,0.00029725,2]
[328681087,1717695047659,-166.91520939,0.00029728,2]
[328681088,1717695047668,-165.65476853,0.00029736,2]
[328681089,1717695047677,-166.66666667,0.00029744,2]
[328681090,1717695047687,-153.24544879,0.00029745,2]
[328681091,1717695047696,-382.13509686,0.00029746,2]
[328681092,1717695047707,-3488.48951811,0.00029747,2]
[328681093,1717695047716,-42360.3773,0.00029759,2]
[328681094,1717695047727,-58673.0434,0.00029759,2]
[328681095,1717695047736,-500.0,0.0002976,2]
[328681096,1717695047746,-200.0,0.0002976,2]
[328681097,1717695047755,-153.24544879,0.00029764,2]
[328681098,1717695047766,-3488.48951811,0.00029769,2]
[328681099,1717695047775,-153.24544879,0.00029771,2]
[328681100,1717695047785,-153.52790425,0.00029788,2]
[328681101,1717695047794,-3488.48951811,0.00029791,2]
[328681102,1717695047806,-300.03381031,0.00029793,2]
[328681103,1717695047816,-1025.0,0.000298,10]
[328681104,1717695047827,-3488.48951811,0.00029813,2]
[328681105,1717695047838,-500.0,0.00029824,6]
[328681106,1717695047848,-500.0,0.00029824,6]
[328681107,1717695047857,-500.0,0.00029824,6]
[328681108,1717695047866,-500.0,0.00029824,6]
[328681109,1717695047877,-500.0,0.00029824,6]
[328681110,1717695047887,-500.0,0.00029824,6]
[328681111,1717695047897,-500.0,0.00029824,6]
[328681112,1717695047906,-500.0,0.00029824,6]
[328681113,1717695047915,-500.0,0.00029824,6]
[328681114,1717695047925,-500.0,0.00029824,6]
[328681115,1717695047934,-500.0,0.00029824,6]
[328681116,1717695047944,-500.0,0.00029824,6]
[328681117,1717695047953,-500.0,0.00029824,6]
[328681118,1717695047963,-500.0,0.00029824,6]
[328681119,1717695047973,-500.0,0.00029824,6]
[328681120,1717695047982,-500.0,0.00029824,6]
[328681121,1717695047992,-500.0,0.00029824,6]
[328681122,1717695048002,-500.0,0.00029824,6]
[328681123,1717695048012,-500.0,0.00029824,6]
[328681124,1717695048021,-500.0,0.00029824,6]
[328681125,1717695048030,-500.0,0.00029824,6]
[328681126,1717695048039,-500.0,0.00029824,6]
[328681127,1717695048050,-500.0,0.00029824,6]
[328681128,1717695048060,-500.0,0.00029824,6]
[328681129,1717695048069,-500.0,0.00029824,6]
[328681130,1717695048078,-500.0,0.00029824,6]
[328681131,1717695048088,-500.0,0.00029824,6]
[328681132,1717695048098,-500.0,0.00029824,6]
[328681133,1717695048109,-500.0,0.00029824,6]
[328681134,1717695048120,-500.0,0.00029824,6]
[328681135,1717695048130,-500.0,0.00029824,6]
[328681136,1717695048139,-500.0,0.00029824,6]
[328681137,1717695048148,-500.0,0.00029824,6]
[328681138,1717695048158,-500.0,0.00029824,6]
[328681139,1717695048167,-500.0,0.00029824,6]
[328681140,1717695048177,-500.0,0.00029824,6]
[328681141,1717695048186,-500.0,0.00029824,6]
[328681142,1717695048200,-500.0,0.00029824,6]
[328681143,1717695048209,-500.0,0.00029824,6]
[328681144,1717695048218,-500.0,0.00029824,6]
[328681145,1717695048226,-500.0,0.00029824,6]
[328681146,1717695048237,-500.0,0.00029824,6]
[328681147,1717695048247,-500.0,0.00029824,6]
[328681148,1717695048256,-500.0,0.00029824,6]
[328681149,1717695048266,-500.0,0.00029824,6]
[328681150,1717695048276,-500.0,0.00029824,6]
[328681151,1717695048286,-500.0,0.00029824,6]
[328681152,1717695048295,-500.0,0.00029824,6]
[328681153,1717695048305,-500.0,0.00029824,6]
[328681154,1717695048315,-500.0,0.00029824,6]
[328681155,1717695048325,-500.0,0.00029824,6]
[328681156,1717695048334,-500.0,0.00029824,6]
[328681157,1717695048344,-500.0,0.00029824,6]
[328681158,1717695048353,-500.0,0.00029824,6]
[328681159,1717695048363,-500.0,0.00029824,6]
[328681160,1717695048373,-500.0,0.00029824,6]
[328681161,1717695048382,-500.0,0.00029824,6]
[328681162,1717695048392,-500.0,0.00029824,6]
[328681163,1717695048401,-500.0,0.00029824,6]
[328681164,1717695048411,-500.0,0.00029824,6]
[328681165,1717695048420,-598.0,0.00029824,6]
[328681166,1717695048429,-3488.48951811,0.00029835,2]
[328681167,1717695048439,-153.24544879,0.00029836,2]
[328681168,1717695048449,-3488.48951811,0.00029856,2]
[328681169,1717695048460,-154.2025836,0.00029862,2]
[328681170,1717695048470,-500.0,0.00029863,4]
[328681171,1717695048479,-517.51,0.00029863,4]
[328681172,1717695048488,-500.0,0.00029863,4]
[328681173,1717695048498,-500.0,0.00029863,4]
[328681174,1717695048507,-500.0,0.00029863,4]
[328681175,1717695048517,-500.0,0.00029863,4]
[328681176,1717695048526,-500.0,0.00029863,4]
[328681177,1717695048535,-500.0,0.00029863,4]
[328681178,1717695048544,-500.0,0.00029863,4]
[328681179,1717695048554,-500.0,0.00029863,4]
[328681180,1717695048563,-500.0,0.00029863,4]
[328681182,1717695048572,-565.96060309,0.00029863,4]
[328681184,1717695048581,-500.0,0.00029863,4]
[328681186,1717695048590,-500.0,0.00029863,4]
[328681188,1717695048599,-500.0,0.00029863,4]
[328681190,1717695048608,-500.0,0.00029863,4]
[328681192,1717695048617,-500.0,0.00029863,4]
[328681193,1717695048626,-500.0,0.00029863,4]
[328681194,1717695048635,-500.0,0.00029863,4]
[328681195,1717695048644,-500.0,0.00029863,4]
[328681196,1717695048653,-500.0,0.00029863,4]
[328681197,1717695048662,-500.0,0.00029863,4]
[328681198,1717695048672,-218.41924175,0.00029863,4]
[328681199,1717695048681,-500.0,0.00029863,4]
[328681200,1717695048690,-500.0,0.00029863,4]
[328681201,1717695048699,-585.52666744,0.00029863,4]
[328681202,1717695048709,-500.0,0.00029863,4]
[328681204,1717695048719,-288.50560525,0.00029863,4]
[328681206,1717695048728,-500.0,0.00029863,4]
[328681208,1717695048737,-500.0,0.00029863,4]
[328681210,1717695048747,-556.05,0.00029863,4]
[328681212,1717695048756,-500.0,0.00029863,4]
[328681213,1717695048765,-500.0,0.00029863,4]
[328681214,1717695048774,-500.0,0.00029863,4]
[328681215,1717695048784,-500.0,0.00029863,4]
[328681216,1717695048793,-500.0,0.00029863,4]
[328681217,1717695048803,-528.54,0.00029863,4]
[328681218,1717695048812,-500.0,0.00029863,4]
[328681219,1717695048821,-500.0,0.00029863,4]
[328681220,1717695048830,-224.62,0.00029863,4]
[328681221,1717695048839,-500.0,0.00029863,4]
[328681222,1717695048849,-500.0,0.00029863,4]
[328681223,1717695048858,-500.0,0.00029863,4]
[328681224,1717695048868,-500.0,0.00029863,4]
[328681225,1717695048877,-500.0,0.00029863,4]
[328681226,1717695048886,-500.0,0.00029863,4]
[328681227,1717695048896,-556.13452833,0.00029863,4]
[328681228,1717695048905,-500.0,0.00029863,4]
[328681229,1717695048914,-500.0,0.00029863,4]
[328681230,1717695048924,-500.0,0.00029863,4]
[328681231,1717695048933,-500.0,0.00029863,4]
[328681232,1717695048942,-500.0,0.00029863,4]
[328681233,1717695048952,-500.0,0.00029863,4]
[328681234,1717695048960,-500.0,0.00029863,4]
[328681235,1717695048969,-409.25,0.00029863,4]
[328681236,1717695048979,-500.0,0.00029863,4]
[328681237,1717695048988,-500.0,0.00029863,4]
[328681238,1717695048997,-500.0,0.00029863,4]
[328681239,1717695049006,-500.0,0.00029863,4]
[328681240,1717695049016,-500.0,0.00029863,2]
[328681241,1717695049025,-500.0,0.00029863,2]
[328681242,1717695049034,-500.0,0.00029863,2]
[328681243,1717695049044,-500.0,0.00029863,2]
[328681244,1717695049053,-500.0,0.00029863,4]
[328681245,1717695049063,-500.0,0.00029863,4]
[328681246,1717695049072,-500.0,0.00029863,4]
[328681247,1717695049081,-500.0,0.00029863,4]
[328681248,1717695049090,-500.0,0.00029863,4]
[328681249,1717695049099,-304.0,0.00029867,5]
[328681250,1717695049108,-4849.36,0.00029873,2]
[328681251,1717695049117,-3488.48951811,0.00029878,2]
[328681252,1717695049126,-7500.0,0.00029898,2]
[328681253,1717695049136,-36675.4417,0.000299,2]
[328681254,1717695049144,-549.8345,0.000299,2]
[328681255,1717695049153,-165.49493537,0.000299,2]
[328681256,1717695049163,-202.634389,0.000299,2]
[328681257,1717695049173,-3488.48951811,0.000299,2]
[328681258,1717695049182,-264.88898994,0.000299,2]
[328681259,1717695049194,-1319.86668073,0.000299,2]
[328681260,1717695049204,-494.12916404,0.000299,15]
[328681261,1717695049213,-201.33737076,0.000299,2]
[328681262,1717695049223,-159.4973613,0.000299,2]
[328681263,1717695049233,-976.89206721,0.000299,2]
[328681264,1717695049243,-247.05607042,0.00029907,2]
[328681265,1717695049251,-155.20555369,0.00029917,2]
[328681266,1717695049260,-404.24309833,0.00029936,2]
[328681267,1717695049272,-154.2025836,0.00029936,2]
[328681268,1717695049281,-160.38064444,0.0002995,2]
[328681269,1717695049290,-166.25097854,0.00029957,2]
[328681270,1717695049299,-154.00356296,0.00029963,2]
[328681271,1717695049308,-404.24309833,0.00029965,2]
[328681272,1717695049317,-156.0,0.0002997,15]
[328681273,1717695049327,-156.0,0.0002997,15]
[328681274,1717695049336,-219.7039466,0.00029979,2]
[328681275,1717695049345,-219.7039466,0.00029979,2]
[328681276,1717695049354,-219.7039466,0.00029979,2]
[328681277,1717695049364,-219.7039466,0.00029979,2]
[328681278,1717695049374,-219.7039466,0.00029979,2]
[328681279,1717695049383,-156.0,0.0002998,15]
[328681280,1717695049392,-156.0,0.0002998,15]
[328681281,1717695049402,-156.0,0.0002998,15]
[328681282,1717695049411,-157.5,0.0002998,15]
[328681283,1717695049420,-383.63680564,0.00029985,2]
[328681284,1717695049430,-219.7039466,0.00029985,2]
[328681285,1717695049440,-200.0,0.0002999,2]
[328681286,1717695049449,-4508.23605796,0.0002999,4]
[328681287,1717695049459,-156.0,0.0002999,15]
[328681288,1717695049468,-156.0,0.0002999,15]
[328681289,1717695049478,-156.0,0.0002999,15]
[328681290,1717695049487,-156.0,0.0002999,15]
[328681291,1717695049496,-274.1108023,0.0002999,2]
[328681293,1717695049506,-221.0,0.0002999,2]
[328681295,1717695049515,-203.0,0.0002999,2]
[328681297,1717695049524,-213.0,0.0002999,2]
[328681299,1717695049533,-151.41,0.0002999,2]
[328681301,1717695049542,-151.41,0.0002999,2]
[328681303,1717695049551,-151.41,0.0002999,2]
[328681305,1717695049561,-151.41,0.0002999,2]
[328681307,1717695049571,-151.41,0.0002999,2]
[328681308,1717695049581,-151.41,0.0002999,2]
[328681310,1717695049591,-151.41,0.0002999,2]
[328681311,1717695049600,-151.41,0.0002999,2]
[328681312,1717695049610,-151.41,0.0002999,2]
[328681313,1717695049619,-151.41,0.0002999,2]
[328681314,1717695049628,-200.28869414,0.0002999,2]
[328681315,1717695049637,-200.28869414,0.0002999,2]
[328681316,1717695049647,-1422.9738741,0.0002999,2]
[328681317,1717695049656,-500.0,0.00029996,2]
[328681318,1717695049666,-500.0,0.00029996,4]
[328681319,1717695049675,-500.0,0.00029997,4]
[328681320,1717695049684,-500.0,0.00029997,4]
[328681321,1717695049694,-240.02326985,0.00029997,4]
[328681322,1717695049704,-500.0,0.00029997,4]
[328681323,1717695049713,-500.0,0.00029997,4]
[328681324,1717695049723,-500.0,0.00029997,4]
[328681325,1717695049732,-500.0,0.00029997,4]
[328681326,1717695049742,-2819.49898177,0.00029998,2]
[328681327,1717695049751,-2366.69217464,0.00029998,2]
[328681328,1717695049762,-3805.66896297,0.00029998,2]
[328681329,1717695049771,-325.41430204,0.00029998,2]
[328681330,1717695049781,-312.17324335,0.00029998,2]
[328681331,1717695049791,-489.75190534,0.00029998,2]
[328681332,1717695049800,-643.81620496,0.00029998,2]
[328681333,1717695049811,-1980.08690757,0.00029998,2]
[328681334,1717695049820,-1639.94884299,0.00029998,2]
[328681335,1717695049829,-9050.25767328,0.00029998,2]
[328681336,1717695049839,-407.19896974,0.00029998,2]
[328681337,1717695049848,-408.60623147,0.00029998,2]
[328681338,1717695049859,-718.75874464,0.00029998,2]
[328681339,1717695049868,-721.46690904,0.00029998,2]
[328681340,1717695049877,-535.80911183,0.00029998,2]
[328681341,1717695049887,-155.0,0.00029998,2]
[328681342,1717695049896,-279.65709518,0.00029999,2]
[328681343,1717695049906,-500.0,0.00029999,4]
[328681344,1717695049915,-500.0,0.00029999,4]
[328681345,1717695049925,-500.0,0.00029999,4]
[328681346,1717695049934,-500.0,0.00029999,4]
[328681347,1717695049943,-496.99799998,0.00029999,4]
[328681348,1717695049954,-202.13874,0.00029999,2]
[328681349,1717695049963,-206.85,0.00029999,4]
[328681350,1717695049972,-500.0,0.00029999,4]
[328681351,1717695049982,-500.0,0.00029999,4]
[328681352,1717695049992,-500.0,0.00029999,4]
[328681353,1717695050001,-500.0,0.00029999,4]
[328681354,1717695050011,-500.0,0.00029999,4]
[328681355,1717695050021,-500.0,0.00029999,4]
[328681356,1717695050030,-622.58920534,0.00029999,4]
[328681357,1717695050040,-500.0,0.00029999,2]
[328681358,1717695050050,-468.45003854,0.00029999,2]
[328681359,1717695050060,-464.85,0.00029999,4]
[328681360,1717695050069,-12763.40724561,0.0003,13]
[328681361,1717695050078,-550617.12365319,0.0003,2]
[328681362,1717695050095,-769.1350846,0.0003,2]
[328681363,1717695050106,-32592.01435,0.0003,2]
[328681364,1717695050117,-6862.01560671,0.0003,2]
[328681365,1717695050128,-255.41169921,0.0003,2]
[328681366,1717695050139,-135991.55377092,0.0003,2]
[328681367,1717695050150,-2497.22459247,0.0003,2]
[328681368,1717695050162,-1099875.84547691,0.0003,2]
[328681369,1717695050176,-1780.1088,0.0003,2]
[328681370,1717695050190,-12580.5765154,0.0003,2]
[328681371,1717695050204,-2356.43045917,0.0003,2]
[328681372,1717695050215,-734.02466279,0.0003,2]
[328681373,1717695050382,-511.18442533,0.00029979,2]
[328681374,1717695050393,-1327.69776977,0.00029979,2]
[328681375,1717695050403,-2233.65523972,0.0003,2]
[328681376,1717695050414,-132278.10134686,0.0003,2]
[328681377,1717695050425,-2835.79270651,0.0003,2]
[328681378,1717695050436,-2910.55810647,0.0003,2]
[328681379,1717695050448,-890.2,0.0003,2]
[328681380,1717695050464,-1898.23381044,0.00029979,2]
[328681381,1717695050475,-356.55670566,0.00029979,2]
[328681382,1717695050484,-3715.48279386,0.0003,2]
[328681383,1717695050496,-16988.87419984,0.0003,2]
[328681384,1717695245015,158.55312829,0.000118,2]
[328681385,1717695245038,158.55312829,0.000118,2]
[328681386,1717695245060,158.55312829,0.000118,2]
[328681387,1717695245083,158.55312829,0.000118,2]
[328681388,1717695245105,158.55312829,0.000118,2]
[328681389,1717695245127,158.55312829,0.000118,2]
[328681390,1717695245150,158.55312829,0.000118,2]
[328681391,1717695245170,158.55312829,0.000118,2]
[328681392,1717695245192,158.55312829,0.000118,2]
[328681393,1717695245215,158.55312829,0.000118,2]
[328681394,1717695245237,158.55312829,0.000118,2]
[328681395,1717695245261,158.55312829,0.000118,2]
[328681396,1717695245284,158.55312829,0.000118,2]
[328681397,1717695245307,158.55312829,0.000118,2]
[328681398,1717695245331,158.55312829,0.000118,2]
[328681399,1717695245354,158.55312829,0.000118,2]
[328681400,1717695245375,158.55312829,0.000118,2]
[328681401,1717695245404,158.55312829,0.000118,2]
[328681402,1717695245428,158.55312829,0.000118,2]
[328681403,1717695245451,158.55312829,0.000118,2]
[328681404,1717695245473,158.55312829,0.000118,2]
[328681405,1717695245496,158.55312829,0.000118,2]
[328681406,1717695245517,158.55312829,0.000118,2]
[328681407,1717695245539,158.55312829,0.000118,2]
[328681408,1717695245567,11051.31267639,0.000118,2]
[328681409,1717695251915,158.55312829,0.00011,2]
[328681410,1717695251938,158.55312829,0.00011,2]
[328681411,1717695251960,158.55312829,0.00011,2]
[328681412,1717695251982,158.55312829,0.00011,2]
[328681413,1717695252003,158.55312829,0.00011,2]
[328681414,1717695252025,158.55312829,0.00011,2]
[328681415,1717695252049,158.55312829,0.00011,2]
[328681416,1717695252073,158.55312829,0.00011,2]
[328681417,1717695252096,158.55312823,0.00011,2]
[328681418,1717695252120,1576.60451922,0.00011,2]
[328681421,1717695271171,150.0,6.94e-05,2]
[328681422,1717695271194,150.0,6.94e-05,2]
[328681423,1717695271216,150.0,6.94e-05,2]
[328681424,1717695271238,150.0,6.94e-05,2]
[328681425,1717695271264,150.0,6.94e-05,2]
[328681426,1717695271286,150.0,6.94e-05,2]
[328681427,1717695271309,150.0,6.94e-05,2]
[328681428,1717695271333,150.0,6.94e-05,2]
[328681429,1717695271356,150.0,6.94e-05,2]
[328681430,1717695271378,150.0,6.94e-05,2]
[328681431,1717695271400,150.0,6.94e-05,2]
[328681432,1717695271430,150.0,6.94e-05,2]
[328681433,1717695271453,150.0,6.94e-05,2]
[328681434,1717695271475,150.0,6.94e-05,2]
[328681435,1717695271498,150.0,6.94e-05,2]
[328681436,1717695271521,255.03676649,6.94e-05,2]
[328681437,1717695271546,710.54313351,6.94e-05,2]
[328681438,1717695288039,175.5,0.00026928,120]
[328681441,1717695310530,150.0,6.94e-05,2]
[328681442,1717695310554,150.0,6.94e-05,2]
[328681443,1717695310578,150.0,6.94e-05,2]
[328681444,1717695310601,150.0,6.94e-05,2]
[328681445,1717695310624,150.0,6.94e-05,2]
[328681446,1717695310646,150.0,6.94e-05,2]
[328681447,1717695310670,150.0,6.94e-05,2]
[328681448,1717695310692,150.0,6.94e-05,2]
[328681449,1717695310717,150.0,6.94e-05,2]
[328681450,1717695310739,150.0,6.94e-05,2]
[328681451,1717695310762,150.0,6.94e-05,2]
[328681452,1717695310799,150.0,6.94e-05,2]
[328681453,1717695310824,150.0,6.94e-05,2]
[328681454,1717695310847,150.0,6.94e-05,2]
[328681455,1717695310870,150.0,6.94e-05,2]
[328681456,1717695310893,150.0,6.94e-05,2]
[328681457,1717695310917,150.0,6.94e-05,2]
[328681458,1717695310945,1710.02721915,6.94e-05,2]
[328681461,1717695328532,150.0,6.94e-05,2]
[328681462,1717695328555,150.0,6.94e-05,2]
[328681463,1717695328579,150.0,6.94e-05,2]
[328681464,1717695328601,150.0,6.94e-05,2]
[328681465,1717695328624,150.0,6.94e-05,2]
[328681466,1717695328646,150.0,6.94e-05,2]
[328681467,1717695328667,150.0,6.94e-05,2]
[328681468,1717695328689,150.0,6.94e-05,2]
[328681469,1717695328716,146.88617264,6.94e-05,2]
[328681473,1717695355830,150.0,9.8e-05,2]
[328681474,1717695355856,55.0,9.8e-05,2]
[328681477,1717695366041,150.0,6.94e-05,2]
[328681478,1717695366064,150.0,6.94e-05,2]
[328681479,1717695366088,62.81476569,6.94e-05,2]
[328681482,1717695383988,150.0,6.94e-05,2]
[328681483,1717695384011,150.0,6.94e-05,2]
[328681484,1717695384033,62.81476569,6.94e-05,2]
[328681486,1717695395889,4015.01259293,0.0001,2]
[328681487,1717695397430,-1396.88258143,0.00013,2]
[328681488,1717695399984,160.2740928,6.94e-05,2]
[328681492,1717695433107,150.0,0.0001,2]
[328681493,1717695433128,59.64885349,0.0001,2]
[328681496,1717695859742,-314.13317884,0.00013298,2]
[328681497,1717695860127,-588.43176206,0.00013298,2]
[328681498,1717695861174,90.35114651,0.0001,2]
[328681499,1717695861197,150.0,0.0001,2]
[328681500,1717695861220,107.09297109,0.0001,2]
[328681501,1717695861809,-712.89104927,0.00013298,2]
[328681502,1717695861835,-162.14362647,0.000138,2]
[328681503,1717695861860,-1000.0,0.00013899,2]
[328681504,1717695861882,-947.3518,0.00013899,2]
[328681505,1717695861906,-819.36543925,0.000139,2]
[328681506,1717695861929,-320.0156755,0.000139,2]
[328681507,1717695861954,-389.48,0.00013989,3]
[328681508,1717695862149,-151.22,0.0001399,2]
[328681509,1717695862171,-345.79999999,0.00013998,2]
[328681510,1717695862193,-150.0,0.00013998,2]
[328681511,1717695862216,-296.62503898,0.00013998,2]
[328681512,1717695862241,-644705.10737054,0.00013999,2]
[328681513,1717695864640,893.21093344,9.5e-05,2]
[328681514,1717695866556,1362.61061232,0.0001,2]
[328681515,1717695872059,362.72006922,0.0001,2]
[328681516,1717695872421,1400.0,0.000137,5]
[328681517,1717695873689,189134.78708666,0.0001,2]
[328681518,1717695874564,2200.0,0.000138,5]
[328681519,1717695876773,2900.0,0.000139,5]
[328681520,1717695884611,5486.56044817,0.0001,2]
[328681521,1717695889751,19769.39955785,0.0001,2]
[328681522,1717695903140,155.0,0.0001,2]
[328681523,1717695905754,478.52713644,0.0001,2]
[328681524,1717695917144,242.26733657,0.0001,2]
[328681530,1717696041650,800.0,0.000137,5]
[328681531,1717696043763,508.18,0.000138,5]
[328681532,1717696043786,691.82,0.000138,5]
[328681533,1717696045870,1600.0,0.000139,5]
[328681534,1717696129457,-625.77511416,0.00013429,2]
[328681535,1717696129480,-885.36930102,0.0001343,2]
[328681536,1717696129503,-585.11830112,0.00013437,2]
[328681537,1717696129530,-400.0,0.000136,4]
[328681538,1717696129556,-2611.20547856,0.00013622,2]
[328681539,1717696129579,-472.7231,0.000139,2]
[328681540,1717696129601,-318.38301392,0.000139,2]
[328681541,1717696129628,-2500.0,0.000139,2]
[328681542,1717696129652,-150.0,0.00013973,2]
[328681543,1717696129676,-403.78649963,0.00013998,2]
[328681544,1717696129699,-2334.89595111,0.00013998,2]
[328681545,1717696129722,-296.54214854,0.00013998,2]
[328681546,1717696129746,-22916.20109194,0.00013999,2]
[328681563,1717696231778,-222.30954794,0.00013438,2]
[328681564,1717696231787,-2611.20547856,0.00013719,2]
[328681565,1717696231797,-232.48717406,0.000139,2]